bitfinex-derivatives/quotes_SOLF0:USTF0_20241226
["timestamp","ask_amount","ask_price","bid_price","bid_amount"]
[1735232176108,11.59751774,190.93,190.89,2.6217]
[1735232176306,11.59751774,190.93,190.86,8.43751774]
[1735232176508,3.16,190.92,190.86,8.43751774]
[1735232177107,1.5198,190.99,190.88,8.43751774]
[1735232177299,8.43751774,190.94,190.84,7.14624797]
[1735232177502,8.43751774,190.94,190.87,8.43751774]
[1735232177804,3.16,190.93,190.9,2.6215]
[1735232178204,3.16,190.93,190.87,8.43751774]
[1735232178205,3.16,190.93,190.88,2.6218]
[1735232178396,3.16,190.93,190.87,8.43751774]
[1735232179209,3.16,190.93,190.84,28.74220633]
[1735232179400,3.16,190.93,190.9,2.6215]
[1735232180510,8.43751774,190.92,190.87,2.622]
[1735232181005,2.6216,190.91,190.87,2.622]
[1735232181200,8.43751774,190.92,190.87,2.622]
[1735232181805,8.43751774,190.9,190.87,2.622]
[1735232183212,3.16,190.93,190.82,1.6111]
[1735232183213,8.43751774,190.92,190.86,8.43751774]
[1735232183411,3.16,190.93,190.86,8.43751774]
[1735232183612,8.43751774,190.92,190.82,1.6111]
[1735232183806,8.43751774,190.92,190.85,8.43751774]
[1735232184413,8.43751774,190.92,190.9,2.6216]
[1735232184808,2.6215,190.91,190.83,8.43751774]
[1735232185015,8.43751774,190.9,190.83,8.43751774]
[1735232185311,3.16,190.93,190.89,8.43751774]
[1735232185611,11.59751774,190.95,190.89,8.43751774]
[1735232186607,11.59751774,190.95,190.93,2.6211]
[1735232187610,8.43751774,190.95,190.93,2.6211]
[1735232187810,11.59751774,190.95,190.93,2.6211]
[1735232188109,3.16,190.95,190.93,2.6211]
[1735232188913,5.7808,190.96,190.93,2.6211]
[1735232189309,8.43751774,190.95,190.84,28.74220633]
[1735232189510,8.43751774,190.95,190.88,8.43751774]
[1735232189912,11.05851774,190.95,190.91,2.6214]
[1735232190408,8.43751774,190.95,190.91,2.6214]
[1735232191810,8.43751774,190.95,190.88,8.43751774]
[1735232192011,8.43751774,190.95,190.9,2.6216]
[1735232192012,2.6211,190.94,190.9,2.6216]
[1735232192805,14.21841774,190.96,190.92,2.6212]
[1735232193010,11.59751774,190.96,190.88,8.43751774]
[1735232193817,2.6211,190.94,190.88,8.43751774]
[1735232194118,8.43751774,190.92,190.86,8.43751774]
[1735232194418,3.16,190.91,190.86,8.43751774]
[1735232195416,5.7815,190.91,190.88,2.6219]
[1735232196611,5.7815,190.91,190.86,8.43751774]
[1735232197218,3.16,190.91,190.89,2.6217]
[1735232197418,3.16,190.91,190.88,8.43751774]
[1735232197916,3.16,190.91,190.9,2.6216]
[1735232199614,5.781,190.95,190.91,2.6214]
[1735232200915,3.16,190.95,190.9,8.43751774]
[1735232201119,3.16,190.95,190.93,2.6212]
[1735232201317,3.16,190.98,190.92,8.43751774]
[1735232201515,8.43751774,191.0,190.97,2.6205]
[1735232201822,11.59751774,191.02,190.96,8.43751774]
[1735232202313,3.16,191.02,190.96,8.43751774]
[1735232202919,5.78,191.02,190.98,2.6204]
[1735232203318,1.5432,191.08,190.96,8.43751774]
[1735232203516,8.43751774,191.04,190.92,3.2422]
[1735232203718,8.43751774,191.02,190.95,8.43751774]
[1735232204017,11.59751774,191.02,190.95,8.43751774]
[1735232204415,3.16,191.01,190.95,8.43751774]
[1735232204716,3.16,191.01,190.97,2.6205]
[1735232204921,3.16,191.01,190.95,8.43751774]
[1735232206424,3.16,191.01,190.97,2.6206]
[1735232207729,8.43751774,191.02,190.97,2.6206]
[1735232207918,3.16,191.01,190.97,2.6206]
[1735232209227,8.43751774,191.0,190.97,2.6206]
[1735232210124,8.43751774,190.98,190.94,2.6211]
[1735232210326,8.43751774,190.96,190.91,1.5849]
[1735232210525,11.59751774,190.96,190.88,8.43751774]
[1735232210822,8.43751774,190.92,190.87,3.113]
[1735232211023,8.43751774,190.94,190.88,8.43751774]
[1735232211829,8.43751774,190.94,190.89,2.6217]
[1735232212429,8.43751774,190.94,190.86,10.12001774]
[1735232212631,2.6213,190.93,190.88,2.6219]
[1735232213132,8.43751774,190.92,190.88,2.6219]
[1735232213327,3.16,190.91,190.86,10.12001774]
[1735232213534,3.16,190.91,190.9,2.6216]
[1735232214829,5.7815,190.91,190.86,2.6221]
[1735232215425,3.16,190.91,190.89,2.6216]
[1735232217129,5.7815,190.91,190.82,3.134]
[1735232217330,3.16,190.91,190.85,8.43751774]
[1735232217526,3.16,190.91,190.82,3.134]
[1735232217830,2.6216,190.9,190.86,2.622]
[1735232218133,8.43751774,190.89,190.82,11.57151774]
[1735232218526,2.6218,190.89,190.84,11.05981774]
[1735232219329,3.16,190.91,190.84,8.43751774]
[1735232219730,11.59751774,190.91,190.84,8.43751774]
[1735232219931,2.6217,190.9,190.85,2.6223]
[1735232220234,8.43751774,190.87,190.8,104.56075306]
[1735232220532,5.7823,190.86,190.81,2.6227]
[1735232221035,5.7823,190.86,190.8,112.9982708]
[1735232221234,3.16,190.86,190.82,2.6226]
[1735232221430,3.16,190.86,190.81,8.43751774]
[1735232221627,3.16,190.86,190.83,8.43751774]
[1735232222125,3.16,190.86,190.84,2.6224]
[1735232223629,3.16,190.86,190.82,8.43751774]
[1735232223630,3.16,190.86,190.82,2.6226]
[1735232224029,3.16,190.86,190.8,104.56075306]
[1735232224336,8.43751774,190.85,190.8,104.56075306]
[1735232224832,11.05991774,190.85,190.8,104.56075306]
[1735232225028,8.43751774,190.85,190.77,1.6256]
[1735232225225,8.43751774,190.85,190.78,8.43751774]
[1735232225530,2.6225,190.84,190.8,2.623]
[1735232225937,2.6225,190.84,190.78,8.43751774]
[1735232226138,2.6225,190.84,190.79,2.6231]
[1735232226827,11.06011774,190.83,190.79,2.6231]
[1735232227028,8.43751774,190.83,190.77,1.6256]
[1735232227231,8.43751774,190.83,190.76,8.43751774]
[1735232227635,8.43751774,190.85,190.78,8.43751774]
[1735232227834,8.43751774,190.85,190.82,2.6227]
[1735232228227,8.43751774,190.85,190.78,8.43751774]
[1735232228429,8.43751774,190.83,190.73,1.6521]
[1735232228633,8.43751774,190.81,190.73,1.6521]
[1735232228933,1.5921,190.91,190.75,2.6236]
[1735232228934,8.43751774,190.79,190.75,2.6236]
[1735232229133,3.16,190.78,190.75,2.6236]
[1735232232142,2.6232,190.79,190.75,2.6236]
[1735232232339,3.16,190.78,190.74,8.43751774]
[1735232232543,3.16,190.78,190.76,2.6235]
[1735232232840,87.51776229,191.0,190.76,8.43751774]
[1735232233139,2.6223,190.86,190.82,2.6227]
[1735232233341,8.43751774,190.87,190.82,2.6227]
[1735232233545,8.43751774,190.85,190.82,2.6227]
[1735232233735,11.59751774,190.85,190.82,2.6227]
[1735232236246,8.43751774,190.87,190.8,8.43751774]
[1735232236547,5.2401,191.02,190.73,4.8121]
[1735232236548,8.43751774,190.93,190.86,8.43751774]
[1735232236735,145.86293716,191.07,190.91,2.6214]
[1735232236736,8.43751774,190.95,190.91,2.6214]
[1735232236939,11.59751774,190.95,190.91,2.6214]
[1735232237246,3.16,190.95,190.88,8.43751774]
[1735232237441,8.43751774,190.96,190.9,8.43751774]
[1735232237641,3.16,190.96,190.9,8.43751774]
[1735232237847,3.16,190.96,190.92,8.43751774]
[1735232238045,8.43751774,190.98,190.92,8.43751774]
[1735232238246,3.16,190.98,190.88,13.17890225]
[1735232238640,2.6209,190.95,190.85,13.17890225]
[1735232238947,3.16,190.98,190.85,13.17890225]
[1735232239545,5.7805,190.98,190.88,2.6218]
[1735232239745,3.16,190.98,190.85,13.17890225]
[1735232240143,2.621,190.95,190.9,2.6215]
[1735232240949,2.6211,190.94,190.88,2.6219]
[1735232241245,2.6211,190.94,190.85,13.17890225]
[1735232241444,2.6211,190.94,190.89,2.6217]
[1735232241646,13.17890225,190.96,190.85,13.17890225]
[1735232241845,2.6209,190.95,190.85,13.17890225]
[1735232242247,13.17890225,190.96,190.89,2.6217]
[1735232243152,2.6211,190.94,190.89,2.6217]
[1735232244746,2.6212,190.93,190.88,2.6218]
[1735232244948,2.6212,190.93,190.85,13.17890225]
[1735232245248,5.7812,190.93,190.85,13.17890225]
[1735232245849,2.6214,190.92,190.85,13.17890225]
[1735232246048,16.33890225,190.93,190.83,1.616]
[1735232246550,13.17890225,190.9,190.8,3.2951]
[1735232247454,2.6221,190.87,190.82,2.6226]
[1735232247653,5.7821,190.87,190.82,2.6226]
[1735232248450,5.7821,190.87,190.8,3.2951]
[1735232248644,5.7821,190.87,190.83,2.6226]
[1735232249250,2.6222,190.86,190.81,2.6227]
[1735232249454,3.16,190.87,190.78,108.02461159]
[1735232250155,2.6223,190.85,190.8,2.6229]
[1735232251453,5.7823,190.85,190.8,2.6229]
[1735232253249,2.6224,190.84,190.8,2.6229]
[1735232253449,3.16,190.85,190.78,110.64781159]
[1735232253648,3.16,190.85,190.74,3.2022]
[1735232253852,13.17890225,190.84,190.74,3.2022]
[1735232254154,14.72290225,190.84,190.74,3.2022]
[1735232254554,2.6229,190.81,190.74,3.2022]
[1735232255356,2.6229,190.81,190.76,2.6234]
[1735232255555,2.6229,190.81,190.74,3.2022]
[1735232255950,2.6229,190.81,190.76,2.6235]
[1735232256646,2.6229,190.81,190.77,2.6233]
[1735232258654,3.14,190.8,190.71,1.6409]
[1735232258855,2.6233,190.78,190.74,2.6238]
[1735232259857,3.14,190.8,190.71,1.6409]
[1735232260057,2.6231,190.79,190.75,2.6236]
[1735232260557,3.14,190.8,190.77,2.6233]
[1735232260863,3.14,190.8,190.73,13.17890225]
[1735232261256,3.14,190.8,190.76,2.6234]
[1735232261453,3.14,190.8,190.73,13.17890225]
[1735232262058,3.14,190.8,190.77,2.6234]
[1735232262355,3.14,190.8,190.73,13.17890225]
[1735232262562,3.14,190.8,190.75,2.6237]
[1735232262957,3.14,190.8,190.73,13.17890225]
[1735232263159,3.14,190.8,190.77,2.6233]
[1735232265863,2.6232,190.79,190.75,2.6236]
[1735232266062,3.14,190.8,190.71,1.6409]
[1735232266459,5.763,190.8,190.71,1.6409]
[1735232266655,3.14,190.8,190.71,1.6409]
[1735232268272,3.14,190.8,190.74,8.44928722]
[1735232268565,5.7631,190.8,190.76,2.6235]
[1735232268763,3.14,190.8,190.76,2.6235]
[1735232269459,2.6231,190.79,190.76,2.6235]
[1735232270163,5.763,190.8,190.76,2.6235]
[1735232271660,11.07188722,190.83,190.79,2.6231]
[1735232271862,3.14,190.83,190.78,8.44928722]
[1735232272163,3.14,190.84,190.78,8.44928722]
[1735232272558,8.44928722,190.85,190.78,8.44928722]
[1735232272765,5.7625,190.84,190.8,2.6229]
[1735232272965,3.14,190.84,190.8,2.6229]
[1735232273166,8.44928722,190.83,190.8,2.6229]
[1735232274467,11.07188722,190.83,190.8,2.6229]
[1735232278668,11.07188722,190.83,190.79,2.6231]
[1735232279267,8.44928722,190.81,190.69,1.604]
[1735232279468,8.44928722,190.81,190.74,8.44928722]
[1735232279967,2.6232,190.79,190.75,2.6235]
[1735232280167,5.7632,190.79,190.74,8.44928722]
[1735232281566,3.14,190.84,190.78,8.44928722]
[1735232281961,3.14,190.84,190.8,8.44928722]
[1735232282166,3.2625,190.9,190.82,8.44928722]
[1735232282365,3.14,190.9,190.84,8.44928722]
[1735232282768,8.44928722,190.93,190.86,8.44928722]
[1735232282968,8.44928722,190.94,190.88,8.44928722]
[1735232283576,8.44928722,190.92,190.8,1.605]
[1735232283777,8.44928722,190.92,190.84,8.44928722]
[1735232284178,8.44928722,190.92,190.8,1.605]
[1735232284179,13.18786002,190.94,190.81,13.18786002]
[1735232284983,2.6216,190.91,190.81,13.18786002]
[1735232285276,13.18786002,190.94,190.81,13.18786002]
[1735232285780,2.6217,190.9,190.86,2.6222]
[1735232285983,5.7417,190.9,190.86,2.6222]
[1735232286281,3.12,190.9,190.86,2.6222]
[1735232286479,3.12,190.9,190.85,2.6223]
[1735232286875,3.12,190.9,190.81,13.18786002]
[1735232287077,5.7416,190.9,190.86,2.6222]
[1735232289072,2.6218,190.89,190.84,2.6223]
[1735232289382,3.12,190.9,190.8,1.605]
[1735232289577,13.18786002,190.88,190.8,1.605]
[1735232289778,2.6223,190.86,190.81,2.6227]
[1735232289977,3.12,190.85,190.8,1.605]
[1735232290574,3.12,190.85,190.84,2.6224]
[1735232292080,87.51776229,191.05,190.84,13.18786002]
[1735232292283,13.18786002,191.0,190.87,13.18786002]
[1735232292483,3.12,190.99,190.88,1.6712]
[1735232293379,2.6205,190.98,190.92,2.6212]
[1735232293580,3.12,190.99,190.88,1.6712]
[1735232293581,16.30786002,190.99,190.88,1.6712]
[1735232294482,2.6208,190.96,190.9,2.6215]
[1735232294686,13.18786002,190.96,190.88,1.6712]
[1735232294886,16.30786002,190.99,190.88,1.6712]
[1735232295286,16.30786002,190.99,190.91,2.6215]
[1735232296486,2.6208,190.96,190.91,2.6215]
[1735232296785,16.30786002,190.99,190.88,1.6712]
[1735232297087,3.12,190.98,190.89,2.6217]
[1735232297688,2.621,190.95,190.89,2.6217]
[1735232297885,13.18786002,190.96,190.88,4.2931]
[1735232298185,13.18786002,190.93,190.79,3.12]
[1735232298485,3.12,190.92,190.79,4.801]
[1735232298890,3.12,190.92,190.79,1.681]
[1735232300490,2.6217,190.9,190.84,2.6224]
[1735232300788,3.12,190.92,190.79,1.681]
[1735232301886,3.12,190.92,190.85,2.6222]
[1735232303087,1.6853,190.95,190.88,2.6218]
[1735232303392,3.12,190.94,190.85,13.18786002]
[1735232303689,2.6212,190.93,190.89,2.6217]
[1735232305285,3.12,190.94,190.82,3.12]
[1735232305490,3.12,190.94,190.82,16.30786002]
[1735232305891,2.6215,190.92,190.87,2.622]
[1735232307489,3.12,190.94,190.87,2.622]
[1735232307686,2.6215,190.91,190.87,2.622]
[1735232307887,3.12,190.94,190.82,16.30786002]
[1735232308088,2.6216,190.91,190.86,2.6221]
[1735232308993,2.6216,190.91,190.82,16.30786002]
[1735232309292,2.6216,190.91,190.87,2.622]
[1735232309988,2.6216,190.9,190.82,13.18786002]
[1735232310188,2.6216,190.9,190.86,2.6222]
[1735232310688,3.12,190.89,190.79,43.61106635]
[1735232311488,3.12,190.89,190.79,14.86886002]
[1735232311688,2.622,190.88,190.79,14.86886002]
[1735232312095,2.622,190.88,190.83,2.6224]
[1735232312294,2.622,190.88,190.79,14.86886002]
[1735232313196,3.12,190.89,190.79,14.86886002]
[1735232313497,2.6223,190.86,190.79,14.86886002]
[1735232314498,2.6223,190.86,190.82,2.6226]
[1735232314897,2.6223,190.86,190.79,14.86886002]
[1735232315097,3.12,190.89,190.79,14.86886002]
[1735232315399,5.7418,190.89,190.79,14.86886002]
[1735232315597,3.12,190.89,190.84,2.6223]
[1735232315799,3.12,190.89,190.79,14.86886002]
[1735232316092,16.30786002,190.89,190.79,14.86886002]
[1735232316596,16.30786002,190.89,190.82,2.6227]
[1735232317293,16.30786002,190.89,190.79,14.86886002]
[1735232317489,1.6853,190.95,190.82,13.18786002]
[1735232317797,3.12,190.94,190.82,13.18786002]
[1735232317998,1.6853,190.95,190.85,2.6222]
[1735232318194,3.12,190.94,190.82,13.18786002]
[1735232318590,3.12,190.94,190.87,2.6219]
[1735232319097,1.6853,190.95,190.87,2.6219]
[1735232319294,3.12,190.94,190.87,2.6219]
[1735232319696,3.12,190.94,190.86,2.6221]
[1735232320796,13.18786002,190.93,190.8,7.14624797]
[1735232320994,13.18786002,190.93,190.79,17.98886002]
[1735232321293,13.18786002,190.93,190.79,14.86886002]
[1735232321594,13.18786002,190.9,190.79,14.86886002]
[1735232321897,3.12,190.89,190.79,1.681]
[1735232322300,2.6222,190.86,190.79,14.86886002]
[1735232322793,2.6222,190.86,190.81,2.6227]
[1735232322999,2.6223,190.85,190.81,2.6227]
[1735232323400,13.18786002,190.82,190.7,163.61906164]
[1735232323701,3.12,190.81,190.7,166.83466164]
[1735232323896,3.2619,190.83,190.73,28.74220633]
[1735232324105,3.12,190.82,190.73,28.74220633]
[1735232324602,2.6232,190.79,190.74,2.6237]
[1735232325600,2.623,190.8,190.74,2.6237]
[1735232326698,16.30786002,190.82,190.71,13.18786002]
[1735232326901,3.12,190.82,190.71,13.18786002]
[1735232327809,3.12,190.82,190.74,13.18786002]
[1735232328304,5.7428,190.82,190.76,2.6235]
[1735232328498,5.7428,190.82,190.74,13.18786002]
[1735232328899,5.7428,190.82,190.78,2.6232]
[1735232332110,3.12,190.82,190.78,2.6232]
[1735232333807,3.12,190.82,190.74,13.18786002]
[1735232334220,3.12,190.82,190.79,2.6231]
[1735232334413,2.6225,190.84,190.79,2.6231]
[1735232334612,3.12,190.83,190.79,2.6231]
[1735232334814,3.12,190.83,190.74,13.18786002]
[1735232335011,3.12,190.83,190.78,2.6232]
[1735232335915,3.12,190.83,190.74,13.18786002]
[1735232336113,3.12,190.83,190.79,2.623]
[1735232336709,13.18786002,190.86,190.79,2.623]
[1735232336912,3.12,190.85,190.79,2.623]
[1735232337414,2.6225,190.84,190.79,2.623]
[1735232337609,2.6225,190.84,190.74,13.18786002]
[1735232338311,3.12,190.85,190.79,2.623]
[1735232338516,2.6226,190.83,190.79,2.623]
[1735232340617,2.6225,190.84,190.74,13.18786002]
[1735232341218,2.6231,190.8,190.71,7.14624797]
[1735232341515,3.12,190.8,190.71,7.14624797]
[1735232341716,2.6232,190.79,190.75,2.6236]
[1735232342022,3.12,190.8,190.75,2.6236]
[1735232342723,3.2,190.82,190.77,2.6234]
[1735232343221,3.2,190.82,190.76,2.6235]
[1735232343222,2.623,190.8,190.76,2.6235]
[1735232344424,2.6231,190.79,190.75,2.6237]
[1735232344614,2.6231,190.79,190.72,13.18786002]
[1735232345219,2.623,190.8,190.74,2.6237]
[1735232345418,3.2,190.82,190.74,2.6237]
[1735232345821,3.2,190.82,190.72,2.6241]
[1735232346123,13.18786002,190.8,190.72,2.6241]
[1735232346619,2.6235,190.77,190.72,2.6241]
[1735232346924,3.2,190.76,190.72,2.6241]
[1735232347419,3.2,190.76,190.7,3.2156]
[1735232348013,3.2,190.76,190.75,2.6237]
[1735232348512,3.2,190.76,190.73,2.6239]
[1735232348717,3.2,190.76,190.7,3.2156]
[1735232349119,3.2,190.76,190.7,1.5738]
[1735232349320,3.2,190.76,190.65,28.74220633]
[1735232349518,13.18786002,190.74,190.65,28.74220633]
[1735232349720,2.6243,190.71,190.66,2.6249]
[1735232349914,3.2,190.7,190.65,7.14624797]
[1735232350818,3.2,190.7,190.62,1.5907]
[1735232351125,2.6247,190.68,190.63,2.6252]
[1735232351621,2.6247,190.68,190.62,1.5907]
[1735232351924,2.6247,190.68,190.64,2.6252]
[1735232352524,3.2,190.7,190.66,2.6249]
[1735232352925,3.2,190.7,190.63,13.18786002]
[1735232353124,3.2,190.7,190.69,2.6245]
[1735232353618,13.18786002,190.77,190.66,13.18786002]
[1735232353820,2.6237,190.75,190.66,13.18786002]
[1735232354317,3.2,190.76,190.66,13.18786002]
[1735232355325,2.6241,190.73,190.67,2.6247]
[1735232355521,13.18786002,190.74,190.63,13.18786002]
[1735232356625,3.2,190.76,190.63,13.18786002]
[1735232356922,2.6237,190.75,190.7,2.6243]
[1735232357124,4.8029,190.79,190.66,13.18786002]
[1735232357324,3.2,190.78,190.74,2.6238]
[1735232357622,3.2,190.78,190.69,13.18786002]
[1735232357816,3.2,190.78,190.7,1.5754]
[1735232359015,3.2,190.78,190.73,2.6238]
[1735232359526,3.2,190.78,190.74,2.6237]
[1735232360620,2.623,190.8,190.75,2.6236]
[1735232360821,14.46815077,190.83,190.7,4.7968]
[1735232361020,3.2,190.82,190.72,13.18786002]
[1735232361413,5.8227,190.82,190.77,2.6233]
[1735232361619,3.2,190.82,190.72,13.18786002]
[1735232361820,3.2,190.82,190.76,2.6235]
[1735232361821,2.623,190.8,190.76,2.6235]
[1735232363226,3.2,190.82,190.72,13.18786002]
[1735232363426,2.6231,190.79,190.75,2.6236]
[1735232363628,3.2,190.82,190.72,13.18786002]
[1735232363825,3.2,190.81,190.72,13.18786002]
[1735232364328,5.8229,190.81,190.77,2.6234]
[1735232366227,2.6229,190.81,190.77,2.6234]
[1735232371734,2.6229,190.81,190.76,2.6235]
[1735232372127,2.623,190.8,190.76,2.6235]
[1735232373030,2.623,190.8,190.76,11.07255318]
[1735232373628,2.623,190.8,190.76,2.6235]
[1735232374237,1.28029075,190.83,190.78,2.6232]
[1735232374537,4.42029075,190.83,190.78,11.07225318]
[1735232375233,3.14,190.83,190.78,2.6232]
[1735232375434,3.14,190.83,190.77,11.07245318]
[1735232376439,11.58905318,190.83,190.77,11.07245318]
[1735232376741,11.58905318,190.83,190.78,2.6232]
[1735232377443,2.6228,190.82,190.78,2.6232]
[1735232377637,8.44905318,190.81,190.7,4.7968]
[1735232377832,8.44905318,190.79,190.73,8.44905318]
[1735232378033,2.6234,190.77,190.73,8.44905318]
[1735232378242,3.14,190.78,190.71,8.44905318]
[1735232378636,8.44905318,190.77,190.7,1.5754]
[1735232378839,8.44905318,190.75,190.69,8.44905318]
[1735232379039,8.44905318,190.75,190.67,8.44905318]
[1735232379239,2.6241,190.72,190.67,8.44905318]
[1735232379644,2.6241,190.72,190.67,2.6247]
[1735232379949,2.6241,190.72,190.68,8.44905318]
[1735232380242,3.14,190.73,190.68,2.6246]
[1735232380942,3.14,190.73,190.67,2.6248]
[1735232381449,3.14,190.73,190.62,13.21083695]
[1735232382249,2.6246,190.69,190.64,2.6252]
[1735232382550,3.14,190.68,190.62,13.21083695]
[1735232382849,3.14,190.68,190.61,1.5989]
[1735232383447,2.6252,190.65,190.59,2.6258]
[1735232384343,2.6252,190.65,190.56,14.73943695]
[1735232384549,2.6252,190.65,190.6,2.6257]
[1735232387151,2.6253,190.64,190.59,15.83673695]
[1735232387351,3.14,190.68,190.59,13.21083695]
[1735232387551,3.14,190.68,190.56,14.73943695]
[1735232387845,16.35083695,190.68,190.56,14.73943695]
[1735232388649,2.6251,190.65,190.6,2.6257]
[1735232388841,16.35083695,190.68,190.56,14.73943695]
[1735232389246,13.21083695,190.64,190.56,2.6262]
[1735232389454,3.14,190.63,190.55,1.5842]
[1735232390253,3.14,190.63,190.56,2.6262]
[1735232391155,2.6255,190.62,190.57,2.6261]
[1735232391948,2.6258,190.6,190.55,4.2106]
[1735232392152,3.2017,190.67,190.55,1.5842]
[1735232392453,13.21083695,190.65,190.55,1.5842]
[1735232392654,3.14,190.64,190.55,1.5842]
[1735232393047,3.14,190.63,190.55,1.5842]
[1735232393249,13.21083695,190.65,190.55,1.5842]
[1735232393448,2.6256,190.61,190.56,2.6262]
[1735232393954,13.21083695,190.65,190.56,2.6262]
[1735232394153,3.14,190.64,190.56,2.6262]
[1735232394652,2.6256,190.61,190.57,2.6261]
[1735232394956,5.7656,190.61,190.57,2.6261]
[1735232396853,87.15007914,190.83,190.55,14.79503695]
[1735232396854,15.75,190.82,190.55,14.79503695]
[1735232397061,13.21083695,190.7,190.58,13.21083695]
[1735232397359,3.14,190.69,190.58,13.21083695]
[1735232397958,2.625,190.66,190.61,2.6256]
[1735232399755,3.14,190.65,190.61,2.6256]
[1735232400258,5.7651,190.65,190.6,2.6257]
[1735232400959,2.6251,190.65,190.61,2.6255]
[1735232401658,3.14,190.66,190.58,3.2076]
[1735232401858,3.14,190.66,190.6,13.21083695]
[1735232402160,3.14,190.7,190.65,8.45732974]
[1735232402357,3.14,190.71,190.65,8.45732974]
[1735232403563,3.14,190.71,190.66,2.6249]
[1735232403856,24.20732974,190.7,190.59,3.14]
[1735232404060,8.45732974,190.68,190.58,3.2076]
[1735232404360,8.45732974,190.68,190.61,8.45732974]
[1735232404559,2.625,190.66,190.62,2.6253]
[1735232404762,5.765,190.66,190.62,2.6253]
[1735232404959,11.59732974,190.66,190.61,8.45732974]
[1735232405160,2.6252,190.64,190.59,8.45732974]
[1735232405467,8.45732974,190.62,190.57,8.45732974]
[1735232405661,8.45732974,190.62,190.55,10.04152974]
[1735232405856,5.7656,190.61,190.57,2.6261]
[1735232408464,2.6257,190.6,190.55,2.6263]
[1735232408762,3.14,190.61,190.49,13.228068]
[1735232409063,2.6263,190.56,190.52,2.6267]
[1735232409266,5.7663,190.56,190.49,13.228068]
[1735232409660,5.7663,190.56,190.52,2.6268]
[1735232409859,3.14,190.56,190.49,13.228068]
[1735232410966,5.7663,190.56,190.51,2.627]
[1735232411368,3.14,190.56,190.51,2.627]
[1735232411962,1.6083,190.6,190.54,2.6265]
[1735232412165,87.15007914,190.78,190.55,13.228068]
[1735232412367,13.228068,190.69,190.56,3.31]
[1735232412666,2.6249,190.67,190.57,13.228068]
[1735232413265,2.625,190.66,190.56,4.9946]
[1735232413463,3.14,190.68,190.57,13.228068]
[1735232414467,4.8159,190.72,190.56,4.9946]
[1735232414758,7.86,190.68,190.61,13.228068]
[1735232415564,10.4847,190.68,190.63,2.6253]
[1735232415762,3.57,190.67,190.63,2.6253]
[1735232415966,3.57,190.67,190.58,13.228068]
[1735232416567,3.82,190.66,190.58,13.228068]
[1735232416763,4.19,190.65,190.58,13.228068]
[1735232416967,4.19,190.64,190.62,2.6254]
[1735232417170,7.33,190.64,190.58,13.228068]
[1735232417369,7.33,190.64,190.56,4.9946]
[1735232417564,9.9552,190.64,190.6,2.6257]
[1735232417768,7.33,190.64,190.56,18.222668]
[1735232417968,2.6256,190.62,190.57,2.6261]
[1735232418168,7.33,190.64,190.56,3.31]
[1735232418771,7.33,190.64,190.56,5.9363]
[1735232419368,2.6259,190.6,190.56,1.6556]
[1735232419568,3.14,190.59,190.51,31.97345241]
[1735232419764,3.14,190.58,190.51,10.4064131]
[1735232419965,3.14,190.57,190.51,10.4064131]
[1735232420475,2.6266,190.54,190.51,7.1890131]
[1735232420665,3.14,190.57,190.49,1.5815]
[1735232420666,16.368068,190.57,190.49,1.5815]
[1735232421467,2.6266,190.54,190.49,4.2087]
[1735232421665,16.368068,190.57,190.49,1.5815]
[1735232423479,2.6263,190.56,190.51,2.6269]
[1735232423668,16.368068,190.57,190.45,3.1954]
[1735232424072,16.368068,190.57,190.45,16.423468]
[1735232424269,3.14,190.57,190.48,13.228068]